[Event "*** Titled Tuesday Blitz"]
[Site "Chess.com"]
[Date "2020.10.20"]
[Round "5"]
[White "tteshan"]
[Black "bait_or_mate"]
[Result "0-1"]
[WhiteElo "2390"]
[BlackElo "2595"]
[TimeControl "180+1"]
[EndTime "10:58:32 PDT"]
[Termination "bait_or_mate won by resignation"]

1. e4 {[%clk 0:03:00.9]} 1... c5 {[%clk 0:02:57.8]} 2. Nf3 {[%clk 0:03:00.2]}
2... d6 {[%clk 0:02:56.2]} 3. d4 {[%clk 0:02:55.8]} 3... cxd4 {[%clk 0:02:57.1]}
4. Qxd4 {[%clk 0:02:55.4]} 4... a6 {[%clk 0:02:55.8]} 5. c4 {[%clk 0:02:53.9]}
5... Nc6 {[%clk 0:02:54.3]} 6. Qe3 {[%clk 0:02:51.3]} 6... g6 {[%clk 0:02:53.6]}
7. Nc3 {[%clk 0:02:50.4]} 7... Bg7 {[%clk 0:02:52.6]} 8. h3 {[%clk 0:02:50.8]}
8... Nf6 {[%clk 0:02:52.8]} 9. Be2 {[%clk 0:02:48.9]} 9... O-O {[%clk
0:02:51.8]} 10. O-O {[%clk 0:02:48.5]} 10... Bd7 {[%clk 0:02:48.2]} 11. Nd5
{[%clk 0:02:32.9]} 11... Nxd5 {[%clk 0:02:42.2]} 12. cxd5 {[%clk 0:02:33.5]}
12... Ne5 {[%clk 0:02:27.9]} 13. Nd4 {[%clk 0:02:27]} 13... Rc8 {[%clk
0:02:25.8]} 14. Bd2 {[%clk 0:02:26.3]} 14... Nc4 {[%clk 0:02:24.6]} 15. Bxc4
{[%clk 0:02:25.4]} 15... Rxc4 {[%clk 0:02:25.5]} 16. Bc3 {[%clk 0:02:24.8]}
16... Qc7 {[%clk 0:02:18.9]} 17. Rad1 {[%clk 0:02:11.8]} 17... Rc8 {[%clk
0:02:17.4]} 18. f4 {[%clk 0:02:06.9]} 18... b5 {[%clk 0:02:06.6]} 19. a3 {[%clk
0:02:04.7]} 19... a5 {[%clk 0:02:03.5]} 20. Ne2 {[%clk 0:01:49.3]} 20... Bxc3
{[%clk 0:01:59.1]} 21. bxc3 {[%clk 0:01:48.9]} 21... Qc5 {[%clk 0:01:48.8]} 22.
Rd4 {[%clk 0:01:39.8]} 22... Qxa3 {[%clk 0:01:44.5]} 23. Rxc4 {[%clk 0:01:39.3]}
23... Rxc4 {[%clk 0:01:42.8]} 24. Kh1 {[%clk 0:01:27.6]} 24... Qc5 {[%clk
0:01:41.9]} 25. Qf3 {[%clk 0:01:24.6]} 25... b4 {[%clk 0:01:32.3]} 26. cxb4
{[%clk 0:01:22.4]} 26... axb4 {[%clk 0:01:33.2]} 27. f5 {[%clk 0:01:22.9]} 27...
Be8 {[%clk 0:01:29.2]} 28. fxg6 {[%clk 0:01:18.8]} 28... hxg6 {[%clk 0:01:30.1]}
29. Nf4 {[%clk 0:01:18.6]} 29... Rc1 {[%clk 0:01:29.2]} 30. h4 {[%clk
0:00:54.4]} 30... Rxf1+ {[%clk 0:01:28.1]} 31. Qxf1 {[%clk 0:00:55.3]} 31... Qe3
{[%clk 0:01:28.4]} 32. h5 {[%clk 0:00:53.1]} 32... Qxe4 {[%clk 0:00:54.7]} 33.
hxg6 {[%clk 0:00:38.1]} 33... fxg6 {[%clk 0:00:55.6]} 34. Ne6 {[%clk 0:00:36.2]}
34... Qh4+ {[%clk 0:00:45.8]} 35. Kg1 {[%clk 0:00:34.2]} 35... Bf7 {[%clk
0:00:46.7]} 36. Qd3 {[%clk 0:00:15.7]} 36... Bxe6 {[%clk 0:00:42.8]} 37. Qxg6+
{[%clk 0:00:15.5]} 37... Kh8 {[%clk 0:00:32.3]} 38. dxe6 {[%clk 0:00:15.8]}
38... b3 {[%clk 0:00:31.8]} 39. Qe8+ {[%clk 0:00:14]} 39... Kg7 {[%clk
0:00:31.2]} 40. Qf7+ {[%clk 0:00:14.5]} 40... Kh6 {[%clk 0:00:31.3]} 41. Qf8+
{[%clk 0:00:14.6]} 41... Kh5 {[%clk 0:00:29.1]} 42. Qf5+ {[%clk 0:00:12.8]}
42... Kh6 {[%clk 0:00:25.7]} 43. Qf8+ {[%clk 0:00:12.3]} 43... Kh5 {[%clk
0:00:17.7]} 44. Qf5+ {[%clk 0:00:12.7]} 44... Qg5 {[%clk 0:00:17.6]} 45. Qf3+
{[%clk 0:00:12.3]} 45... Qg4 {[%clk 0:00:17.8]} 46. Qxb3 {[%clk 0:00:12.2]}
46... Qd4+ {[%clk 0:00:17.9]} 47. Kh2 {[%clk 0:00:11.2]} 47... Qf4+ {[%clk
0:00:16.8]} 48. Kg1 {[%clk 0:00:10.2]} 48... Qd4+ {[%clk 0:00:14.1]} 49. Kh2
{[%clk 0:00:10]} 49... Qh4+ {[%clk 0:00:14.1]} 50. Kg1 {[%clk 0:00:10.4]} 50...
Qe1+ {[%clk 0:00:14.1]} 51. Kh2 {[%clk 0:00:10.7]} 51... Qe5+ {[%clk 0:00:14.5]}
52. Kg1 {[%clk 0:00:10.9]} 52... d5 {[%clk 0:00:14]} 53. Qh3+ {[%clk 0:00:09.8]}
53... Kg5 {[%clk 0:00:13.4]} 54. Qd3 {[%clk 0:00:04.5]} 54... Qxe6 {[%clk
0:00:12.2]} 55. Qg3+ {[%clk 0:00:04.7]} 55... Kf6 {[%clk 0:00:11.7]} 56. Qf4+
{[%clk 0:00:04.8]} 56... Qf5 {[%clk 0:00:11.6]} 57. Qh6+ {[%clk 0:00:05.1]}
57... Ke5 {[%clk 0:00:11]} 58. Qd2 {[%clk 0:00:05.6]} 58... e6 {[%clk 0:00:09]}
59. Qe3+ {[%clk 0:00:05.9]} 59... Qe4 {[%clk 0:00:08.8]} 60. Qb6 {[%clk
0:00:06.5]} 60... Qd4+ {[%clk 0:00:08.7]} 61. Qxd4+ {[%clk 0:00:06.8]} 61...
Kxd4 {[%clk 0:00:09.6]} 62. Kf2 {[%clk 0:00:07.1]} 62... Ke4 {[%clk 0:00:10.2]}
63. Ke2 {[%clk 0:00:07.2]} 63... Kf4 {[%clk 0:00:10.3]} 64. Kf2 {[%clk
0:00:07.5]} 64... Kg4 {[%clk 0:00:10.6]} 65. Ke3 {[%clk 0:00:07.3]} 65... Kg3
{[%clk 0:00:10.6]} 66. Kd4 {[%clk 0:00:08.2]} 66... Kxg2 {[%clk 0:00:11]} 0-1

[Event "*** Titled Tuesday Blitz"]
[Site "Chess.com"]
[Date "2020.10.20"]
[Round "5"]
[White "zverr1"]
[Black "731291"]
[Result "1/2-1/2"]
[WhiteElo "2426"]
[BlackElo "2627"]
[TimeControl "180+1"]
[EndTime "10:58:36 PDT"]
[Termination "Game drawn by repetition"]

1. d4 {[%clk 0:03:00.9]} 1... Nf6 {[%clk 0:02:56.7]} 2. c4 {[%clk 0:03:01.4]}
2... e6 {[%clk 0:02:56.5]} 3. Nf3 {[%clk 0:03:01]} 3... b6 {[%clk 0:02:56.5]} 4.
Nc3 {[%clk 0:03:01.2]} 4... Bb7 {[%clk 0:02:56.3]} 5. Bg5 {[%clk 0:03:01.6]}
5... Bb4 {[%clk 0:02:53.7]} 6. e3 {[%clk 0:03:00.7]} 6... h6 {[%clk 0:02:52.5]}
7. Bh4 {[%clk 0:03:01.3]} 7... g5 {[%clk 0:02:52.5]} 8. Bg3 {[%clk 0:03:01.9]}
8... Ne4 {[%clk 0:02:53]} 9. Nd2 {[%clk 0:03:02.5]} 9... Bxc3 {[%clk 0:02:49.4]}
10. bxc3 {[%clk 0:03:03.4]} 10... d6 {[%clk 0:02:46.1]} 11. Nxe4 {[%clk
0:02:49.3]} 11... Bxe4 {[%clk 0:02:47]} 12. f3 {[%clk 0:02:50.1]} 12... Bb7
{[%clk 0:02:43.4]} 13. e4 {[%clk 0:02:50.2]} 13... Nd7 {[%clk 0:02:43.5]} 14. h4
{[%clk 0:02:44.5]} 14... Qf6 {[%clk 0:02:41.6]} 15. Qd2 {[%clk 0:02:36.9]} 15...
O-O-O {[%clk 0:02:35.5]} 16. Bd3 {[%clk 0:02:29.4]} 16... Qg7 {[%clk 0:02:16.3]}
17. hxg5 {[%clk 0:02:23.6]} 17... hxg5 {[%clk 0:02:17.2]} 18. O-O-O {[%clk
0:02:23.8]} 18... g4 {[%clk 0:02:14.1]} 19. f4 {[%clk 0:02:19.3]} 19... Nf6
{[%clk 0:02:11.9]} 20. Qe3 {[%clk 0:02:16]} 20... Rxh1 {[%clk 0:02:09.3]} 21.
Rxh1 {[%clk 0:02:14.9]} 21... Rh8 {[%clk 0:02:10.2]} 22. Rh4 {[%clk 0:02:02.7]}
22... Rh6 {[%clk 0:01:19.7]} 23. f5 {[%clk 0:01:48.7]} 23... Rxh4 {[%clk
0:01:09]} 24. Bxh4 {[%clk 0:01:49.6]} 24... exf5 {[%clk 0:00:59.2]} 25. exf5
{[%clk 0:01:47.4]} 25... Kd7 {[%clk 0:00:58]} 26. g3 {[%clk 0:01:41]} 26... Bf3
{[%clk 0:00:56.2]} 27. c5 {[%clk 0:01:35.4]} 27... Nd5 {[%clk 0:00:53.5]} 28.
c6+ {[%clk 0:01:24.6]} 28... Kxc6 {[%clk 0:00:50.1]} 29. Qe8+ {[%clk 0:01:24.8]}
29... Kb7 {[%clk 0:00:50.2]} 30. Be4 {[%clk 0:01:02.7]} 30... Qh6+ {[%clk
0:00:43]} 31. Kc2 {[%clk 0:01:00.8]} 31... Bxe4+ {[%clk 0:00:22.6]} 32. Qxe4
{[%clk 0:01:01.7]} 32... c6 {[%clk 0:00:23.1]} 33. c4 {[%clk 0:00:54.9]} 33...
Qe3 {[%clk 0:00:23.2]} 34. Qxe3 {[%clk 0:00:46.3]} 34... Nxe3+ {[%clk
0:00:24.1]} 35. Kd3 {[%clk 0:00:42.5]} 35... Nxf5 {[%clk 0:00:25]} 36. Ke4
{[%clk 0:00:37.1]} 36... Ng7 {[%clk 0:00:21.3]} 37. Bf6 {[%clk 0:00:34]} 37...
Ne8 {[%clk 0:00:17.7]} 38. Be7 {[%clk 0:00:33.4]} 38... Kc7 {[%clk 0:00:17.9]}
39. Kf5 {[%clk 0:00:33.8]} 39... Kd7 {[%clk 0:00:18.1]} 40. Bg5 {[%clk
0:00:32.8]} 40... Ng7+ {[%clk 0:00:16.5]} 41. Kxg4 {[%clk 0:00:33.4]} 41... Ne6
{[%clk 0:00:16.4]} 42. Be3 {[%clk 0:00:33.9]} 42... d5 {[%clk 0:00:15.3]} 43.
cxd5 {[%clk 0:00:33.4]} 43... cxd5 {[%clk 0:00:16.2]} 44. Kf5 {[%clk 0:00:34.3]}
44... Ke7 {[%clk 0:00:16.3]} 45. Ke5 {[%clk 0:00:34.1]} 45... Nc7 {[%clk
0:00:16.5]} 46. Bg5+ {[%clk 0:00:33.1]} 46... Kd7 {[%clk 0:00:16.9]} 47. a4
{[%clk 0:00:32.8]} 47... a6 {[%clk 0:00:16.7]} 48. Bd2 {[%clk 0:00:32.4]} 48...
b5 {[%clk 0:00:15.8]} 49. axb5 {[%clk 0:00:32.2]} 49... axb5 {[%clk 0:00:16.7]}
50. Ba5 {[%clk 0:00:29.5]} 50... Kc6 {[%clk 0:00:10.3]} 51. Bxc7 {[%clk
0:00:14.2]} 51... Kxc7 {[%clk 0:00:11.2]} 52. Kxd5 {[%clk 0:00:15.1]} 52... Kb6
{[%clk 0:00:11.3]} 53. Ke4 {[%clk 0:00:13.4]} 53... Kc6 {[%clk 0:00:10.9]} 54.
d5+ {[%clk 0:00:11.7]} 54... Kc5 {[%clk 0:00:11.2]} 55. Ke5 {[%clk 0:00:11.5]}
55... b4 {[%clk 0:00:11.8]} 56. d6 {[%clk 0:00:12]} 56... Kc6 {[%clk 0:00:12.5]}
57. Kd4 {[%clk 0:00:09.4]} 57... Kxd6 {[%clk 0:00:12.8]} 58. Kc4 {[%clk
0:00:09.9]} 58... Ke5 {[%clk 0:00:13.7]} 59. Kxb4 {[%clk 0:00:10.4]} 59... Kf5
{[%clk 0:00:14.2]} 60. Kc3 {[%clk 0:00:09.9]} 60... Kg4 {[%clk 0:00:14.8]} 61.
Kd4 {[%clk 0:00:09.8]} 61... f6 {[%clk 0:00:11]} 62. Ke4 {[%clk 0:00:09.2]}
62... f5+ {[%clk 0:00:06.8]} 63. Ke5 {[%clk 0:00:09.3]} 63... Kg5 {[%clk
0:00:06.3]} 64. Ke6 {[%clk 0:00:09.5]} 64... Kg4 {[%clk 0:00:05.5]} 65. Ke5
{[%clk 0:00:09.7]} 65... Kg5 {[%clk 0:00:05.5]} 66. Ke6 {[%clk 0:00:10]} 66...
Kg6 {[%clk 0:00:06.3]} 67. Ke5 {[%clk 0:00:09.9]} 67... Kg5 {[%clk 0:00:07.2]}
1/2-1/2

[Event "*** Titled Tuesday Blitz"]
[Site "Chess.com"]
[Date "2020.10.20"]
[Round "5"]
[White "Sergey85Rodchenkov"]
[Black "SophieNikoladze"]
[Result "1-0"]
[WhiteElo "2424"]
[BlackElo "2276"]
[TimeControl "180+1"]
[EndTime "10:58:36 PDT"]
[Termination "Sergey85Rodchenkov won on time"]

1. e4 {[%clk 0:02:59.6]} 1... d6 {[%clk 0:02:59.3]} 2. d4 {[%clk 0:02:59.1]}
2... Nf6 {[%clk 0:02:59.5]} 3. Nc3 {[%clk 0:02:57.5]} 3... Nbd7 {[%clk
0:02:59.9]} 4. Nf3 {[%clk 0:02:57.4]} 4... e5 {[%clk 0:02:59.9]} 5. Bc4 {[%clk
0:02:57.4]} 5... Be7 {[%clk 0:02:58.8]} 6. O-O {[%clk 0:02:57.6]} 6... c6 {[%clk
0:02:58.8]} 7. a4 {[%clk 0:02:56.6]} 7... O-O {[%clk 0:02:58.4]} 8. Re1 {[%clk
0:02:56.8]} 8... Qc7 {[%clk 0:02:58.8]} 9. h3 {[%clk 0:02:54]} 9... b6 {[%clk
0:02:58.5]} 10. Bg5 {[%clk 0:02:52.9]} 10... Bb7 {[%clk 0:02:57]} 11. Bxf6
{[%clk 0:02:52.3]} 11... Bxf6 {[%clk 0:02:53.9]} 12. d5 {[%clk 0:02:51.1]} 12...
c5 {[%clk 0:02:51]} 13. Nd2 {[%clk 0:02:46.5]} 13... Rfe8 {[%clk 0:02:45.4]} 14.
Bd3 {[%clk 0:02:46.2]} 14... Nf8 {[%clk 0:02:42.9]} 15. Nc4 {[%clk 0:02:45.7]}
15... a6 {[%clk 0:02:41.5]} 16. Rb1 {[%clk 0:02:45]} 16... Bc8 {[%clk
0:02:36.8]} 17. b4 {[%clk 0:02:41.9]} 17... Rb8 {[%clk 0:02:25.6]} 18. bxc5
{[%clk 0:02:39.2]} 18... dxc5 {[%clk 0:02:23.6]} 19. Bf1 {[%clk 0:02:21.2]}
19... Nd7 {[%clk 0:02:19.1]} 20. d6 {[%clk 0:02:18.8]} 20... Qc6 {[%clk
0:02:15.9]} 21. Nd5 {[%clk 0:02:17.6]} 21... b5 {[%clk 0:02:10.7]} 22. axb5
{[%clk 0:02:13.8]} 22... axb5 {[%clk 0:02:09.6]} 23. Nce3 {[%clk 0:01:51]} 23...
c4 {[%clk 0:02:05.2]} 24. Nf5 {[%clk 0:01:47.7]} 24... Qc5 {[%clk 0:02:00.8]}
25. Re3 {[%clk 0:01:37.6]} 25... Re6 {[%clk 0:01:57.7]} 26. Rg3 {[%clk
0:01:35.8]} 26... g6 {[%clk 0:01:55.4]} 27. Qf3 {[%clk 0:01:28.1]} 27... Bb7
{[%clk 0:01:39.1]} 28. Rd1 {[%clk 0:01:26.7]} 28... Bxd5 {[%clk 0:01:27.7]} 29.
Rxd5 {[%clk 0:01:21]} 29... Qc6 {[%clk 0:01:25]} 30. h4 {[%clk 0:01:02]} 30...
Kf8 {[%clk 0:01:23.5]} 31. Ne3 {[%clk 0:00:54.4]} 31... Rxd6 {[%clk 0:01:20]}
32. h5 {[%clk 0:00:53.8]} 32... Rb6 {[%clk 0:01:11.3]} 33. hxg6 {[%clk
0:00:51.6]} 33... hxg6 {[%clk 0:01:10.6]} 34. Rh3 {[%clk 0:00:51.8]} 34... Ra6
{[%clk 0:00:53.6]} 35. g3 {[%clk 0:00:49.6]} 35... Nb6 {[%clk 0:00:48]} 36. Rxd6
{[%clk 0:00:46.1]} 36... Qxd6 {[%clk 0:00:47.4]} 37. Kg2 {[%clk 0:00:43.8]}
37... Nd7 {[%clk 0:00:41.8]} 38. Nd5 {[%clk 0:00:43]} 38... Bg7 {[%clk
0:00:40.9]} 39. Rh7 {[%clk 0:00:38.2]} 39... Nf6 {[%clk 0:00:36.7]} 40. Nxf6
{[%clk 0:00:33.7]} 40... Qxf6 {[%clk 0:00:36]} 41. Qg4 {[%clk 0:00:29.9]} 41...
Ra8 {[%clk 0:00:19.6]} 42. Qe2 {[%clk 0:00:20.8]} 42... Ra2 {[%clk 0:00:17.2]}
43. Qd2 {[%clk 0:00:19.6]} 43... Qe7 {[%clk 0:00:16.1]} 44. Qc3 {[%clk
0:00:18.6]} 44... Kg8 {[%clk 0:00:15.5]} 45. Rh1 {[%clk 0:00:17.8]} 45... Qa3
{[%clk 0:00:14.3]} 46. Qd2 {[%clk 0:00:16.4]} 46... Qe7 {[%clk 0:00:13.7]} 47.
Be2 {[%clk 0:00:15.7]} 47... Qb7 {[%clk 0:00:13.2]} 48. Bf3 {[%clk 0:00:15.4]}
48... Qc7 {[%clk 0:00:12.5]} 49. Rb1 {[%clk 0:00:14.1]} 49... Ra5 {[%clk
0:00:11.9]} 50. Qb4 {[%clk 0:00:13.3]} 50... Qb6 {[%clk 0:00:11.1]} 51. Rd1
{[%clk 0:00:12.4]} 51... Ra8 {[%clk 0:00:08.7]} 52. Rd5 {[%clk 0:00:12.1]} 52...
Rb8 {[%clk 0:00:08.5]} 53. Be2 {[%clk 0:00:11.6]} 53... Bf8 {[%clk 0:00:08.1]}
54. Qd2 {[%clk 0:00:11.2]} 54... Qc6 {[%clk 0:00:08.1]} 55. Bg4 {[%clk
0:00:10.9]} 55... Ra8 {[%clk 0:00:05.8]} 56. Bd7 {[%clk 0:00:10.8]} 56... Qc7
{[%clk 0:00:05.1]} 57. Bxb5 {[%clk 0:00:10.9]} 57... c3 {[%clk 0:00:04]} 58. Qd3
{[%clk 0:00:10.6]} 58... Rb8 {[%clk 0:00:04.1]} 59. Bc4 {[%clk 0:00:10.4]} 59...
Rb7 {[%clk 0:00:01.9]} 60. Rd8 {[%clk 0:00:09]} 60... Ra7 {[%clk 0:00:00.8]} 61.
Rd5 {[%clk 0:00:07.2]} 1-0

[Event "*** Titled Tuesday Blitz"]
[Site "Chess.com"]
[Date "2020.10.20"]
[Round "5"]
[White "elegant285"]
[Black "ChessArchitect64"]
[Result "0-1"]
[WhiteElo "2292"]
[BlackElo "2059"]
[TimeControl "180+1"]
[EndTime "10:58:43 PDT"]
[Termination "ChessArchitect64 won by resignation"]

1. d4 {[%clk 0:03:00.9]} 1... d5 {[%clk 0:02:56]} 2. c4 {[%clk 0:03:00.5]} 2...
c6 {[%clk 0:02:55.4]} 3. Nc3 {[%clk 0:02:59.8]} 3... Nf6 {[%clk 0:02:54.3]} 4.
cxd5 {[%clk 0:03:00.2]} 4... Nxd5 {[%clk 0:02:50.6]} 5. e4 {[%clk 0:02:59]} 5...
Nxc3 {[%clk 0:02:50.6]} 6. bxc3 {[%clk 0:02:59.9]} 6... g6 {[%clk 0:02:50.7]} 7.
h4 {[%clk 0:02:59.7]} 7... Bg7 {[%clk 0:02:44.8]} 8. h5 {[%clk 0:02:59]} 8... c5
{[%clk 0:02:44.9]} 9. Be3 {[%clk 0:02:51.6]} 9... cxd4 {[%clk 0:02:41.1]} 10.
cxd4 {[%clk 0:02:47.9]} 10... Nc6 {[%clk 0:02:36.6]} 11. d5 {[%clk 0:02:25.7]}
11... Ne5 {[%clk 0:02:34.2]} 12. Rc1 {[%clk 0:02:07.9]} 12... Bd7 {[%clk
0:02:09.6]} 13. Be2 {[%clk 0:01:54.4]} 13... Rc8 {[%clk 0:01:52.1]} 14. f4
{[%clk 0:01:38.3]} 14... Rxc1 {[%clk 0:01:51]} 15. Bxc1 {[%clk 0:01:39.2]} 15...
Qa5+ {[%clk 0:01:21]} 16. Bd2 {[%clk 0:01:37.7]} 16... Qxa2 {[%clk 0:01:17.8]}
17. fxe5 {[%clk 0:01:21.6]} 17... Bxe5 {[%clk 0:01:17.5]} 18. Nf3 {[%clk
0:01:21.6]} 18... Bg3+ {[%clk 0:01:13.7]} 19. Kf1 {[%clk 0:01:21.8]} 19... O-O
{[%clk 0:01:06.6]} 20. Bc3 {[%clk 0:01:13.4]} 20... Rc8 {[%clk 0:01:04.3]} 21.
Qd4 {[%clk 0:00:54.3]} 21... Qb1+ {[%clk 0:00:49.4]} 22. Ne1 {[%clk 0:00:43]}
22... f6 {[%clk 0:00:34.4]} 23. Qe3 {[%clk 0:00:29.6]} 23... Bxe1 {[%clk
0:00:06.6]} 24. Bxe1 {[%clk 0:00:30.5]} 24... Rc1 {[%clk 0:00:06.4]} 25. Qd2
{[%clk 0:00:27.7]} 25... g5 {[%clk 0:00:04.9]} 26. Kf2 {[%clk 0:00:25.7]} 26...
g4 {[%clk 0:00:04.5]} 27. g3 {[%clk 0:00:21.8]} 27... Rc2 {[%clk 0:00:03.4]} 28.
Qf4 {[%clk 0:00:17.6]} 28... Qb2 {[%clk 0:00:03.1]} 29. Qe3 {[%clk 0:00:16.2]}
29... Bb5 {[%clk 0:00:03.1]} 30. Bd2 {[%clk 0:00:11]} 30... Rxd2 {[%clk
0:00:03.3]} 31. Re1 {[%clk 0:00:11.7]} 31... Bxe2 {[%clk 0:00:03.4]} 32. Rxe2
{[%clk 0:00:12]} 32... Rxe2+ {[%clk 0:00:04.1]} 33. Qxe2 {[%clk 0:00:11.7]}
33... Qxe2+ {[%clk 0:00:04.9]} 34. Kxe2 {[%clk 0:00:12.6]} 34... Kg7 {[%clk
0:00:05.6]} 35. Ke3 {[%clk 0:00:11]} 35... Kh6 {[%clk 0:00:06]} 36. Kf4 {[%clk
0:00:11.5]} 36... Kxh5 {[%clk 0:00:06]} 37. e5 {[%clk 0:00:12.4]} 37... fxe5+
{[%clk 0:00:06.2]} 38. Kxe5 {[%clk 0:00:13.3]} 38... b5 {[%clk 0:00:06]} 39. Ke6
{[%clk 0:00:14.2]} 39... b4 {[%clk 0:00:06.5]} 40. Kxe7 {[%clk 0:00:14.7]} 40...
b3 {[%clk 0:00:07.2]} 41. d6 {[%clk 0:00:15.6]} 41... b2 {[%clk 0:00:07.7]} 42.
d7 {[%clk 0:00:16.5]} 42... b1=Q {[%clk 0:00:07.7]} 43. d8=Q {[%clk 0:00:17.4]}
43... Qe4+ {[%clk 0:00:08.2]} 44. Kf7 {[%clk 0:00:16.6]} 44... Qf5+ {[%clk
0:00:08.4]} 45. Ke8 {[%clk 0:00:15.9]} 45... Qg6+ {[%clk 0:00:07]} 46. Kf8
{[%clk 0:00:14]} 46... Qf5+ {[%clk 0:00:07.2]} 47. Ke8 {[%clk 0:00:13.9]} 47...
a5 {[%clk 0:00:07.4]} 48. Qh4+ {[%clk 0:00:12]} 48... Kg6 {[%clk 0:00:07.2]} 49.
Qe7 {[%clk 0:00:10.8]} 49... Qf6 {[%clk 0:00:04.9]} 50. Qe4+ {[%clk 0:00:09.5]}
50... Kh5 {[%clk 0:00:05.2]} 51. Qd5+ {[%clk 0:00:08.3]} 51... Kh6 {[%clk
0:00:04.7]} 52. Qxa5 {[%clk 0:00:07.1]} 52... Kg6 {[%clk 0:00:04.1]} 53. Qb4
{[%clk 0:00:03]} 53... Qf7+ {[%clk 0:00:04.5]} 54. Kd8 {[%clk 0:00:02.8]} 54...
Qf6+ {[%clk 0:00:03.8]} 55. Kd7 {[%clk 0:00:02.9]} 55... h5 {[%clk 0:00:04.4]}
56. Qe4+ {[%clk 0:00:02.4]} 56... Qf5+ {[%clk 0:00:04.4]} 57. Qe6+ {[%clk
0:00:02.6]} 57... Qxe6+ {[%clk 0:00:04.6]} 58. Kxe6 {[%clk 0:00:03.5]} 58... h4
{[%clk 0:00:05.2]} 0-1

[Event "*** Titled Tuesday Blitz"]
[Site "Chess.com"]
[Date "2020.10.20"]
[Round "5"]
[White "Susal_De_Silva"]
[Black "esrosenberg"]
[Result "1/2-1/2"]
[WhiteElo "2417"]
[BlackElo "2291"]
[TimeControl "180+1"]
[EndTime "10:58:44 PDT"]
[Termination "Game drawn - insufficient material"]

1. e4 {[%clk 0:03:00.9]} 1... e5 {[%clk 0:02:59.8]} 2. Nf3 {[%clk 0:03:00.7]}
2... Nc6 {[%clk 0:03:00.4]} 3. Bc4 {[%clk 0:03:00.8]} 3... Nf6 {[%clk
0:03:00.4]} 4. d3 {[%clk 0:03:01.1]} 4... Bc5 {[%clk 0:03:00]} 5. O-O {[%clk
0:03:01.4]} 5... a6 {[%clk 0:03:00.6]} 6. c3 {[%clk 0:03:01.5]} 6... Ba7 {[%clk
0:03:00.4]} 7. h3 {[%clk 0:03:00.5]} 7... d6 {[%clk 0:03:00.6]} 8. Re1 {[%clk
0:03:00.2]} 8... h6 {[%clk 0:02:59.4]} 9. Nbd2 {[%clk 0:02:59.5]} 9... O-O
{[%clk 0:02:56.8]} 10. Bb3 {[%clk 0:02:59]} 10... Re8 {[%clk 0:02:53.4]} 11. Nf1
{[%clk 0:02:59.3]} 11... Be6 {[%clk 0:02:52.3]} 12. Ng3 {[%clk 0:02:59.1]} 12...
Qd7 {[%clk 0:02:50.7]} 13. Bc2 {[%clk 0:02:57.3]} 13... Bxh3 {[%clk 0:02:44.5]}
14. gxh3 {[%clk 0:02:53.5]} 14... Qxh3 {[%clk 0:02:45.4]} 15. Be3 {[%clk
0:02:51]} 15... Bxe3 {[%clk 0:02:36.1]} 16. Rxe3 {[%clk 0:02:49.6]} 16... Ng4
{[%clk 0:02:36.7]} 17. Re1 {[%clk 0:02:37.1]} 17... Re6 {[%clk 0:02:36.5]} 18.
Qe2 {[%clk 0:02:32.6]} 18... Rg6 {[%clk 0:02:30.9]} 19. Qf1 {[%clk 0:02:27.7]}
19... Nxf2 {[%clk 0:02:24.4]} 20. Qxh3 {[%clk 0:02:10.6]} 20... Nxh3+ {[%clk
0:02:24.4]} 21. Kh2 {[%clk 0:02:10.8]} 21... Nf4 {[%clk 0:02:10.7]} 22. Rad1
{[%clk 0:02:06.1]} 22... Ne7 {[%clk 0:02:02.2]} 23. Rd2 {[%clk 0:01:55.2]} 23...
c5 {[%clk 0:01:55.1]} 24. Ne2 {[%clk 0:01:42]} 24... Rg2+ {[%clk 0:01:25.2]} 25.
Kh1 {[%clk 0:01:40.5]} 25... Rg4 {[%clk 0:01:00.2]} 26. Nxf4 {[%clk 0:01:34.2]}
26... Rxf4 {[%clk 0:00:58.6]} 27. Kg2 {[%clk 0:01:33]} 27... f5 {[%clk
0:00:56.3]} 28. d4 {[%clk 0:01:30.9]} 28... fxe4 {[%clk 0:00:52.8]} 29. Rxe4
{[%clk 0:01:31.8]} 29... Rxe4 {[%clk 0:00:47.3]} 30. Bxe4 {[%clk 0:01:32.7]}
30... d5 {[%clk 0:00:47.9]} 31. Bc2 {[%clk 0:01:32]} 31... e4 {[%clk 0:00:44]}
32. Ne5 {[%clk 0:01:32.4]} 32... cxd4 {[%clk 0:00:43.5]} 33. cxd4 {[%clk
0:01:25.1]} 33... Nf5 {[%clk 0:00:43.4]} 34. Bb3 {[%clk 0:01:23.6]} 34... Kh7
{[%clk 0:00:37.8]} 35. Kh3 {[%clk 0:00:56.1]} 35... Rd8 {[%clk 0:00:36.4]} 36.
Kg4 {[%clk 0:00:39.6]} 36... g6 {[%clk 0:00:33.1]} 37. Kh3 {[%clk 0:00:28.4]}
37... Kg7 {[%clk 0:00:32.3]} 38. Rg2 {[%clk 0:00:25.2]} 38... g5 {[%clk
0:00:30.8]} 39. Rf2 {[%clk 0:00:23.4]} 39... Nxd4 {[%clk 0:00:24.6]} 40. Rf7+
{[%clk 0:00:23.6]} 40... Kg8 {[%clk 0:00:25]} 41. Rxb7 {[%clk 0:00:22.5]} 41...
Nxb3 {[%clk 0:00:25]} 42. Rxb3 {[%clk 0:00:20]} 42... d4 {[%clk 0:00:25]} 43.
Nc4 {[%clk 0:00:09.4]} 43... d3 {[%clk 0:00:25]} 44. Ne3 {[%clk 0:00:07.4]}
44... d2 {[%clk 0:00:24.3]} 45. Nd1 {[%clk 0:00:08]} 45... Kf7 {[%clk
0:00:18.4]} 46. Re3 {[%clk 0:00:08.5]} 46... Rd4 {[%clk 0:00:16.3]} 47. Kg2
{[%clk 0:00:08.9]} 47... Kf6 {[%clk 0:00:16.1]} 48. Kf2 {[%clk 0:00:09.4]} 48...
Kf5 {[%clk 0:00:15.9]} 49. Ke2 {[%clk 0:00:10]} 49... Kf4 {[%clk 0:00:15.8]} 50.
Nf2 {[%clk 0:00:09.7]} 50... d1=Q+ {[%clk 0:00:14.8]} 51. Nxd1 {[%clk
0:00:09.6]} 51... Rxd1 {[%clk 0:00:15.5]} 52. Ra3 {[%clk 0:00:05.8]} 52... Rd6
{[%clk 0:00:14.4]} 53. Rh3 {[%clk 0:00:04.4]} 53... g4 {[%clk 0:00:13.8]} 54.
Rh5 {[%clk 0:00:04.9]} 54... g3 {[%clk 0:00:13.9]} 55. Rh4+ {[%clk 0:00:04.7]}
55... Kg5 {[%clk 0:00:12.9]} 56. Rxe4 {[%clk 0:00:05]} 56... g2 {[%clk
0:00:12.4]} 57. Kf2 {[%clk 0:00:02.4]} 57... Rd2+ {[%clk 0:00:12.4]} 58. Kg1
{[%clk 0:00:03.3]} 58... Rxb2 {[%clk 0:00:12.4]} 59. Ra4 {[%clk 0:00:04.2]}
59... h5 {[%clk 0:00:10.7]} 60. Ra5+ {[%clk 0:00:04.4]} 60... Kg4 {[%clk
0:00:10.7]} 61. Ra4+ {[%clk 0:00:04.5]} 61... Kf3 {[%clk 0:00:10]} 62. Ra3+
{[%clk 0:00:04.8]} 62... Ke4 {[%clk 0:00:08.8]} 63. Ra4+ {[%clk 0:00:05.1]}
63... Kd3 {[%clk 0:00:08.8]} 64. Ra3+ {[%clk 0:00:05.4]} 64... Kc4 {[%clk
0:00:08.2]} 65. Rxa6 {[%clk 0:00:05.6]} 65... h4 {[%clk 0:00:05.8]} 66. Rh6
{[%clk 0:00:06]} 66... Rxa2 {[%clk 0:00:04.7]} 67. Rxh4+ {[%clk 0:00:06.4]}
67... Kd3 {[%clk 0:00:05.3]} 68. Rg4 {[%clk 0:00:06.9]} 68... Ke3 {[%clk
0:00:05.1]} 69. Rxg2 {[%clk 0:00:07.4]} 69... Rxg2+ {[%clk 0:00:04.7]} 70. Kxg2
{[%clk 0:00:07.8]} 1/2-1/2